fUSD/lending_fUSD_20250616
["ID","MTS","AMOUNT","RATE_DAILY","PERIOD"]
[366119800,1750073465273,-151.0,0.0001668,2]
[366119801,1750073465283,-151.0,0.0001668,2]
[366119802,1750073465294,-831.801902,0.0001668,2]
[366119803,1750073465304,-831.801902,0.0001668,2]
[366119804,1750073465314,-151.0,0.0001668,2]
[366119805,1750073465326,-151.0,0.0001668,2]
[366119806,1750073465336,-263.862329,0.0001668,2]
[366119807,1750073465346,-389.885571,0.0001668,2]
[366119808,1750073465356,-389.885571,0.0001668,2]
[366119809,1750073465367,-622.644428,0.0001668,2]
[366119810,1750073465376,-723.929279,0.0001668,2]
[366119811,1750073465386,-723.929279,0.0001668,2]
[366119812,1750073465397,-331.981144,0.0001668,2]
[366119813,1750073465407,-331.981144,0.0001668,2]
[366119814,1750073465417,-361.079346,0.0001668,2]
[366119815,1750073465427,-943.062475,0.0001668,2]
[366119816,1750073465436,-943.062475,0.0001668,2]
[366119817,1750073465446,-317.582198,0.0001668,2]
[366119818,1750073465455,-317.582198,0.0001668,2]
[366119819,1750073465465,-296.60801,0.0001668,2]
[366119820,1750073465474,-151.0,0.0001668,2]
[366119821,1750073465484,-296.60801,0.0001668,2]
[366119822,1750073465493,-935.36489,0.0001668,2]
[366119823,1750073465504,-935.36489,0.0001668,2]
[366119824,1750073465513,-151.0,0.0001668,2]
[366119825,1750073465523,-151.0,0.0001668,2]
[366119826,1750073465533,-151.0,0.0001668,2]
[366119827,1750073465542,-151.0,0.0001668,2]
[366119828,1750073465552,-151.0,0.0001668,2]
[366119829,1750073465561,-151.0,0.0001668,2]
[366119830,1750073465571,-151.0,0.0001668,2]
[366119831,1750073465581,-189.297716,0.0001668,2]
[366119832,1750073465591,-189.297716,0.0001668,2]
[366119833,1750073465601,-151.0,0.0001668,2]
[366119834,1750073465610,-151.0,0.0001668,2]
[366119835,1750073465620,-190.983216,0.0001668,2]
[366119836,1750073465630,-190.983216,0.0001668,2]
[366119837,1750073465640,-151.0,0.0001668,2]
[366119838,1750073465650,-507.26937,0.0001668,2]
[366119839,1750073465662,-507.26937,0.0001668,2]
[366119840,1750073465672,-153.558206,0.0001668,2]
[366119841,1750073465681,-153.558206,0.0001668,2]
[366119842,1750073465691,-771.368373,0.0001668,2]
[366119843,1750073465701,-771.368373,0.0001668,2]
[366119844,1750073465710,-1354.642034,0.0001668,2]
[366119845,1750073465720,-1354.642034,0.0001668,2]
[366119846,1750073465730,-402.964965,0.0001668,2]
[366119847,1750073465739,-402.964965,0.0001668,2]
[366119848,1750073465749,-296.463085,0.0001668,2]
[366119849,1750073465759,-296.463085,0.0001668,2]
[366119850,1750073465768,-151.0,0.0001668,2]
[366119851,1750073465778,-151.0,0.0001668,2]
[366119852,1750073465788,-220.426329,0.0001668,2]
[366119853,1750073465798,-220.426329,0.0001668,2]
[366119854,1750073465807,-302.942155,0.0001668,2]
[366119855,1750073465816,-221.853486,0.0001668,2]
[366119856,1750073465826,-302.942155,0.0001668,2]
[366119857,1750073465835,-425.595712,0.0001668,2]
[366119858,1750073465845,-221.853486,0.0001668,2]
[366119859,1750073465854,-425.595712,0.0001668,2]
[366119860,1750073465863,-320.000609,0.0001668,2]
[366119861,1750073465873,-320.000609,0.0001668,2]
[366119862,1750073465882,-151.0,0.0001668,2]
[366119863,1750073465893,-151.0,0.0001668,2]
[366119864,1750073465903,-216.008136,0.0001668,2]
[366119865,1750073465914,-216.008136,0.0001668,2]
[366119866,1750073465924,-151.0,0.0001668,2]
[366119867,1750073465933,-199.703375,0.0001668,2]
[366119868,1750073465943,-199.703375,0.0001668,2]
[366119869,1750073465953,-151.0,0.0001668,2]
[366119870,1750073465964,-163.140116,0.0001668,2]
[366119871,1750073465974,-151.0,0.0001668,2]
[366119872,1750073465984,-1211.69147,0.0001668,2]
[366119873,1750073465994,-1211.69147,0.0001668,2]
[366119874,1750073466004,-218.553934,0.0001668,2]
[366119875,1750073466015,-218.553934,0.0001668,2]
[366119876,1750073466027,-150.0,0.00016688,2]
[366119877,1750073466037,-400.0,0.00016691,2]
[366119878,1750073466046,-826.64613972,0.00016693,2]
[366119879,1750073466056,-1008.0,0.000167,2]
[366119880,1750073466067,-171.0,0.00016727,2]
[366119881,1750073466077,-826.64613972,0.00016728,2]
[366119882,1750073466087,-176.80313314,0.00016744,2]
[366119883,1750073466097,-4562.23996898,0.00016747,10]
[366119884,1750073466107,-190.983216,0.00016747,2]
[366119885,1750073466119,-190.983216,0.00016747,2]
[366119886,1750073466130,-151.0,0.00016747,2]
[366119887,1750073466140,-507.26937,0.00016747,2]
[366119888,1750073466150,-507.26937,0.00016747,2]
[366119889,1750073466161,-153.558206,0.00016747,2]
[366119890,1750073466171,-153.558206,0.00016747,2]
[366119891,1750073466181,-296.463085,0.00016747,2]
[366119892,1750073466191,-296.463085,0.00016747,2]
[366119893,1750073466201,-151.0,0.00016747,2]
[366119894,1750073466211,-320.000609,0.00016747,2]
[366119895,1750073466428,-320.000609,0.00016747,2]
[366119896,1750073466439,-200.0,0.00016759,2]
[366119897,1750073466449,-151.0,0.00016761,2]
[366119898,1750073466459,-151.0,0.00016761,2]
[366119899,1750073466468,-151.0,0.00016761,2]
[366119900,1750073466478,-151.0,0.00016761,2]
[366119901,1750073466488,-202.263444,0.00016761,2]
[366119902,1750073466497,-151.0,0.00016761,2]
[366119903,1750073466506,-151.0,0.00016761,2]
[366119904,1750073466516,-151.0,0.00016761,2]
[366119905,1750073466526,-320.42988017,0.00016762,2]
[366119906,1750073466536,-826.64613972,0.00016762,2]
[366119907,1750073466545,-227.043837,0.00016765,2]
[366119908,1750073466554,-281.915627,0.00016765,2]
[366119909,1750073466563,-363.522909,0.00016765,2]
[366119910,1750073466573,-363.522912,0.00016765,2]
[366119911,1750073466583,-227.249347,0.00016765,2]
[366119912,1750073466592,-227.249351,0.00016765,2]
[366119913,1750073466601,-160.114818,0.00016765,2]
[366119914,1750073466610,-160.114818,0.00016765,2]
[366119915,1750073466620,-253.727265,0.00016765,2]
[366119916,1750073466630,-253.727265,0.00016765,2]
[366119917,1750073466639,-831.801902,0.00016765,2]
[366119918,1750073466650,-831.801902,0.00016765,2]
[366119919,1750073466661,-150.0,0.00016767,2]
[366119920,1750073466671,-8387.56115386,0.00016767,2]
[366119921,1750073467266,-2106.45732841,0.00016767,2]
[366119922,1750073467733,-272.49230327,0.00016701,2]
[366119923,1750073467745,-1921.47045309,0.00016701,2]
[366119924,1750073467754,-150.0,0.00016734,2]
[366119925,1750073467765,-130.91530471,0.00016767,2]
[366119926,1750073467775,-150.0,0.00016767,2]
[366119927,1750073467784,-983.77718255,0.00016767,2]
[366119928,1750073467794,-150.0,0.00016767,2]
[366119929,1750073467803,-562.40456133,0.00016767,2]
[366119930,1750073467818,-3900.00000005,0.00016767,2]
[366119931,1750073467829,-3434.44,0.00016767,2]
[366119932,1750073467840,-911.93905103,0.00016767,2]
[366119933,1750073467859,-17935.21312,0.00016767,2]
[366119934,1750073467870,-10499.89062721,0.00016767,2]
[366119935,1750073467885,-58210.7340638,0.00016767,2]
[366119936,1750073467894,-150.0,0.00016767,2]
[366119937,1750073467903,-4794.49972876,0.00016767,2]
[366119938,1750073467913,-216.945624,0.00016767,2]
[366119939,1750073467922,-151.0,0.00016767,2]
[366119940,1750073467933,-151.0,0.00016767,2]
[366119941,1750073467942,-151.0,0.00016767,2]
[366119942,1750073467951,-151.0,0.00016767,2]
[366119943,1750073467960,-151.0,0.00016767,2]
[366119944,1750073467969,-151.0,0.00016767,2]
[366119945,1750073467979,-151.0,0.00016767,2]
[366119946,1750073467987,-151.0,0.00016767,2]
[366119947,1750073467997,-151.0,0.00016767,2]
[366119948,1750073468006,-240.955094,0.00016767,2]
[366119949,1750073468015,-257.484281,0.00016767,2]
[366119950,1750073468024,-257.484281,0.00016767,2]
[366119951,1750073468034,-257.484281,0.00016767,2]
[366119952,1750073468044,-257.484285,0.00016767,2]
[366119953,1750073468054,-151.0,0.00016767,2]
[366119954,1750073468063,-151.0,0.00016767,2]
[366119955,1750073468072,-151.0,0.00016767,2]
[366119956,1750073468081,-151.0,0.00016767,2]
[366119957,1750073468091,-151.0,0.00016767,2]
[366119958,1750073468100,-151.0,0.00016767,2]
[366119959,1750073468110,-321.629011,0.00016767,2]
[366119960,1750073468120,-321.629011,0.00016767,2]
[366119961,1750073468129,-321.629011,0.00016767,2]
[366119962,1750073468139,-321.629011,0.00016767,2]
[366119963,1750073468148,-321.629011,0.00016767,2]
[366119964,1750073468158,-321.629016,0.00016767,2]
[366119965,1750073468168,-151.0,0.00016767,2]
[366119966,1750073468177,-151.0,0.00016767,2]
[366119967,1750073468186,-151.0,0.00016767,2]
[366119968,1750073468195,-167.787668,0.00016767,2]
[366119969,1750073468205,-167.787662,0.00016767,2]
[366119970,1750073468353,-160.050184,0.00016767,2]
[366119971,1750073468363,-160.050175,0.00016767,2]
[366119972,1750073468373,-151.0,0.00016767,2]
[366119973,1750073468383,-218.007186,0.00016767,2]
[366119974,1750073468393,-151.0,0.00016767,2]
[366119975,1750073468403,-151.0,0.00016767,2]
[366119976,1750073468413,-268.084298,0.00016767,2]
[366119977,1750073468422,-160.114818,0.00016767,2]
[366119978,1750073468432,-160.11482,0.00016767,2]
[366119979,1750073468441,-223.322793,0.00016767,2]
[366119980,1750073468451,-223.322793,0.00016767,2]
[366119981,1750073468460,-223.322793,0.00016767,2]
[366119982,1750073468469,-223.322793,0.00016767,2]
[366119983,1750073468478,-223.322793,0.00016767,2]
[366119984,1750073468488,-223.32279,0.00016767,2]
[366119985,1750073468498,-151.0,0.00016767,2]
[366119986,1750073468508,-177.398591,0.00016767,2]
[366119987,1750073468517,-246.708445,0.00016767,2]
[366119988,1750073468527,-246.708445,0.00016767,2]
[366119989,1750073468536,-246.708445,0.00016767,2]
[366119990,1750073468545,-246.708445,0.00016767,2]
[366119991,1750073468555,-246.708445,0.00016767,2]
[366119992,1750073468564,-246.708449,0.00016767,2]
[366119993,1750073468575,-309.380826,0.00016767,2]
[366119994,1750073468584,-309.380826,0.00016767,2]
[366119995,1750073468594,-309.380826,0.00016767,2]
[366119996,1750073468604,-309.380826,0.00016767,2]
[366119997,1750073468614,-309.380826,0.00016767,2]
[366119998,1750073468624,-309.380835,0.00016767,2]
[366119999,1750073468633,-253.727265,0.00016767,2]
[366120000,1750073468643,-160.671911,0.00016767,2]
[366120001,1750073468653,-160.671911,0.00016767,2]
[366120002,1750073468665,-160.671911,0.00016767,2]
[366120003,1750073468674,-253.727256,0.00016767,2]
[366120004,1750073468684,-160.671911,0.00016767,2]
[366120005,1750073468693,-160.671911,0.00016767,2]
[366120006,1750073468703,-160.671902,0.00016767,2]
[366120007,1750073468712,-309.65892,0.00016767,2]
[366120008,1750073468721,-309.65892,0.00016767,2]
[366120009,1750073468731,-309.65892,0.00016767,2]
[366120010,1750073468740,-309.658928,0.00016767,2]
[366120011,1750073468749,-151.0,0.00016767,2]
[366120012,1750073468759,-151.0,0.00016767,2]
[366120013,1750073468769,-151.0,0.00016767,2]
[366120014,1750073468778,-273.413564,0.00016767,2]
[366120015,1750073468787,-151.0,0.00016767,2]
[366120016,1750073468797,-831.801902,0.00016767,2]
[366120017,1750073468806,-831.801892,0.00016767,2]
[366120018,1750073468817,-151.0,0.00016767,2]
[366120019,1750073468827,-151.0,0.00016767,2]
[366120020,1750073468837,-151.0,0.00016767,2]
[366120021,1750073468847,-151.0,0.00016767,2]
[366120022,1750073468857,-151.0,0.00016767,2]
[366120023,1750073468866,-389.885571,0.00016767,2]
[366120024,1750073468875,-389.885571,0.00016767,2]
[366120025,1750073468885,-389.885571,0.00016767,2]
[366120026,1750073468895,-389.885573,0.00016767,2]
[366120027,1750073468904,-622.644428,0.00016767,2]
[366120028,1750073468914,-622.64442,0.00016767,2]
[366120029,1750073468923,-723.929279,0.00016767,2]
[366120030,1750073468934,-723.929275,0.00016767,2]
[366120031,1750073468943,-331.981144,0.00016767,2]
[366120032,1750073468954,-331.981154,0.00016767,2]
[366120033,1750073468963,-361.079345,0.00016767,2]
[366120034,1750073468973,-943.062475,0.00016767,2]
[366120035,1750073468982,-943.062475,0.00016767,2]
[366120036,1750073468992,-943.062475,0.00016767,2]
[366120037,1750073469001,-943.06247519,0.00016767,2]
[366120038,1750073469011,-317.582198,0.00016767,2]
[366120039,1750073469021,-317.582198,0.00016767,2]
[366120040,1750073469030,-317.582198,0.00016767,2]
[366120041,1750073469039,-317.582192,0.00016767,2]
[366120042,1750073469049,-296.60801,0.00016767,2]
[366120043,1750073469059,-151.0,0.00016767,2]
[366120044,1750073469067,-273.467535,0.00016767,2]
[366120045,1750073469077,-296.608018,0.00016767,2]
[366120046,1750073469087,-935.36489,0.00016767,2]
[366120047,1750073469096,-935.36489,0.00016767,2]
[366120048,1750073469106,-935.36489,0.00016767,2]
[366120049,1750073469115,-935.36489724,0.00016767,2]
[366120050,1750073469126,-151.0,0.00016767,2]
[366120051,1750073469136,-151.0,0.00016767,2]
[366120052,1750073469146,-151.0,0.00016767,2]
[366120053,1750073469156,-252.720699,0.00016767,2]
[366120054,1750073469166,-151.0,0.00016767,2]
[366120055,1750073469177,-151.0,0.00016767,2]
[366120056,1750073469186,-151.0,0.00016767,2]
[366120057,1750073469196,-151.0,0.00016767,2]
[366120058,1750073469206,-151.0,0.00016767,2]
[366120059,1750073469215,-151.0,0.00016767,2]
[366120060,1750073469225,-151.0,0.00016767,2]
[366120061,1750073469235,-151.0,0.00016767,2]
[366120062,1750073469244,-490.0,0.00016767,2]
[366120063,1750073469254,-2199.675655,0.00016767,2]
[366120064,1750073469265,-490.0,0.00016767,2]
[366120065,1750073469275,-151.0,0.00016767,2]
[366120066,1750073469284,-151.0,0.00016767,2]
[366120067,1750073469294,-151.0,0.00016767,2]
[366120068,1750073469304,-490.0,0.00016767,2]
[366120069,1750073469314,-490.0,0.00016767,2]
[366120070,1750073469325,-490.0,0.00016767,2]
[366120071,1750073469335,-490.0,0.00016767,2]
[366120072,1750073469345,-2846.004816,0.00016767,2]
[366120073,1750073469355,-490.0,0.00016767,2]
[366120074,1750073469366,-490.0,0.00016767,2]
[366120075,1750073469375,-189.297716,0.00016767,2]
[366120076,1750073469385,-560.93,0.00016767,2]
[366120077,1750073469395,-189.297716,0.00016767,2]
[366120078,1750073469406,-490.0,0.00016767,2]
[366120079,1750073469417,-490.0,0.00016767,2]
[366120080,1750073469426,-490.0,0.00016767,2]
[366120081,1750073469436,-490.0,0.00016767,2]
[366120082,1750073469445,-490.0,0.00016767,2]
[366120083,1750073469455,-490.0,0.00016767,2]
[366120084,1750073469465,-490.0,0.00016767,2]
[366120085,1750073469475,-490.0,0.00016767,2]
[366120086,1750073469485,-490.0,0.00016767,2]
[366120087,1750073469494,-490.0,0.00016767,2]
[366120088,1750073469504,-490.0,0.00016767,2]
[366120089,1750073469514,-490.0,0.00016767,2]
[366120090,1750073469523,-603.89,0.00016767,2]
[366120091,1750073469533,-490.0,0.00016767,2]
[366120092,1750073469542,-250.0,0.00016767,2]
[366120093,1750073469552,-490.0,0.00016767,2]
[366120094,1750073469561,-151.0,0.00016767,2]
[366120095,1750073469571,-151.0,0.00016767,2]
[366120096,1750073469580,-490.0,0.00016767,2]
[366120097,1750073469589,-490.0,0.00016767,2]
[366120098,1750073469599,-533.93,0.00016767,2]
[366120099,1750073469608,-1148.01,0.00016767,2]
[366120100,1750073469619,-490.0,0.00016767,2]
[366120101,1750073469628,-490.0,0.00016767,2]
[366120102,1750073469639,-290.81193275,0.00016767,2]
[366120103,1750073469648,-490.0,0.00016767,2]
[366120104,1750073469658,-490.0,0.00016767,2]
[366120105,1750073469668,-496.58,0.00016767,2]
[366120106,1750073469677,-534.62,0.00016767,2]
[366120107,1750073469687,-490.0,0.00016767,2]
[366120108,1750073469696,-490.0,0.00016767,2]
[366120109,1750073469705,-490.0,0.00016767,2]
[366120110,1750073469714,-490.0,0.00016767,2]
[366120111,1750073469723,-490.0,0.00016767,2]
[366120112,1750073469733,-551.05,0.00016767,2]
[366120113,1750073469742,-490.0,0.00016767,2]
[366120114,1750073469752,-151.0,0.00016767,2]
[366120115,1750073469762,-151.0,0.00016767,2]
[366120116,1750073469772,-490.0,0.00016767,2]
[366120117,1750073469781,-490.0,0.00016767,2]
[366120118,1750073469791,-490.0,0.00016767,2]
[366120119,1750073469800,-490.0,0.00016767,2]
[366120120,1750073469809,-190.15848122,0.00016767,2]
[366120121,1750073469818,-207.32054634,0.00016767,2]
[366120122,1750073469827,-490.0,0.00016767,2]
[366120123,1750073469837,-490.0,0.00016767,2]
[366120124,1750073469846,-490.0,0.00016767,2]
[366120125,1750073469856,-490.0,0.00016767,2]
[366120126,1750073469865,-490.0,0.00016767,2]
[366120127,1750073469874,-532.69,0.00016767,2]
[366120128,1750073469883,-490.0,0.00016767,2]
[366120129,1750073469894,-490.0,0.00016767,2]
[366120130,1750073469904,-855.97,0.00016767,2]
[366120131,1750073469914,-490.0,0.00016767,2]
[366120132,1750073469923,-490.0,0.00016767,2]
[366120133,1750073469933,-490.0,0.00016767,2]
[366120134,1750073469942,-490.0,0.00016767,2]
[366120135,1750073469953,-808.22,0.00016767,2]
[366120136,1750073469962,-481.27839089,0.00016767,2]
[366120137,1750073469971,-490.0,0.00016767,2]
[366120138,1750073469982,-490.0,0.00016767,2]
[366120139,1750073469992,-490.0,0.00016767,2]
[366120140,1750073470001,-490.0,0.00016767,2]
[366120141,1750073470011,-490.0,0.00016767,2]
[366120142,1750073470020,-490.0,0.00016767,2]
[366120143,1750073470029,-190.983216,0.00016767,2]
[366120144,1750073470039,-190.983216,0.00016767,2]
[366120145,1750073470049,-190.983216,0.00016767,2]
[366120146,1750073470059,-190.983208,0.00016767,2]
[366120147,1750073470070,-295.93898937,0.00016767,2]
[366120148,1750073470080,-490.0,0.00016767,2]
[366120149,1750073470090,-739.1,0.00016767,2]
[366120150,1750073470100,-490.0,0.00016767,2]
[366120151,1750073470110,-490.0,0.00016767,2]
[366120152,1750073470120,-151.0,0.00016767,2]
[366120153,1750073470130,-151.0,0.00016767,2]
[366120154,1750073470140,-490.0,0.00016767,2]
[366120155,1750073470149,-490.0,0.00016767,2]
[366120156,1750073470160,-490.0,0.00016767,2]
[366120157,1750073470170,-490.0,0.00016767,2]
[366120158,1750073470180,-490.0,0.00016767,2]
[366120159,1750073470190,-524.5,0.00016767,2]
[366120160,1750073470199,-490.0,0.00016767,2]
[366120161,1750073470209,-490.0,0.00016767,2]
[366120162,1750073470219,-152.44944783,0.00016767,2]
[366120163,1750073470230,-586.46,0.00016767,2]
[366120164,1750073470240,-490.0,0.00016767,2]
[366120165,1750073470249,-490.0,0.00016767,2]
[366120166,1750073470260,-490.0,0.00016767,2]
[366120167,1750073470269,-501.26,0.00016767,2]
[366120168,1750073470279,-571.34,0.00016767,2]
[366120169,1750073470289,-490.0,0.00016767,2]
[366120170,1750073470299,-490.0,0.00016767,2]
[366120171,1750073470309,-628.59,0.00016767,2]
[366120172,1750073470320,-490.0,0.00016767,2]
[366120173,1750073470332,-925.12,0.00016767,2]
[366120174,1750073470342,-490.0,0.00016767,2]
[366120175,1750073470351,-507.26937,0.00016767,2]
[366120176,1750073470362,-1396.86,0.00016767,2]
[366120177,1750073470373,-490.0,0.00016767,2]
[366120178,1750073470383,-507.26937,0.00016767,2]
[366120179,1750073470393,-490.0,0.00016767,2]
[366120180,1750073470403,-490.0,0.00016767,2]
[366120181,1750073470415,-993.49,0.00016767,2]
[366120182,1750073470425,-490.0,0.00016767,2]
[366120183,1750073470435,-490.0,0.00016767,2]
[366120184,1750073470445,-490.0,0.00016767,2]
[366120185,1750073470454,-490.0,0.00016767,2]
[366120186,1750073470464,-510.94,0.00016767,2]
[366120187,1750073470473,-1164.66,0.00016767,2]
[366120188,1750073470483,-903.73,0.00016767,2]
[366120189,1750073470492,-490.0,0.00016767,2]
[366120190,1750073470501,-598.4,0.00016767,2]
[366120191,1750073470511,-754.6,0.00016767,2]
[366120192,1750073470522,-490.0,0.00016767,2]
[366120193,1750073470531,-153.558206,0.00016767,2]
[366120194,1750073470540,-490.0,0.00016767,2]
[366120195,1750073470550,-842.9,0.00016767,2]
[366120196,1750073470560,-537.08,0.00016767,2]
[366120197,1750073470570,-490.0,0.00016767,2]
[366120198,1750073470580,-153.5582,0.00016767,2]
[366120199,1750073470589,-1083.68,0.00016767,2]
[366120200,1750073470599,-490.0,0.00016767,2]
[366120201,1750073470608,-490.0,0.00016767,2]
[366120202,1750073470619,-490.0,0.00016767,2]
[366120203,1750073470629,-503.53,0.00016767,2]
[366120204,1750073470638,-490.0,0.00016767,2]
[366120205,1750073470648,-490.0,0.00016767,2]
[366120206,1750073470659,-543.0,0.00016767,2]
[366120207,1750073470672,-490.0,0.00016767,2]
[366120208,1750073470681,-526.71,0.00016767,2]
[366120209,1750073470691,-771.368373,0.00016767,2]
[366120210,1750073470701,-771.368373,0.00016767,2]
[366120211,1750073470711,-490.0,0.00016767,2]
[366120212,1750073470720,-490.0,0.00016767,2]
[366120213,1750073470730,-771.368373,0.00016767,2]
[366120214,1750073470740,-771.368366,0.00016767,2]
[366120215,1750073470751,-490.0,0.00016767,2]
[366120216,1750073470760,-490.0,0.00016767,2]
[366120217,1750073470770,-494.73,0.00016767,2]
[366120218,1750073470780,-722.98,0.00016767,2]
[366120219,1750073470790,-945.23,0.00016767,2]
[366120220,1750073470799,-1123.92,0.00016767,2]
[366120221,1750073470809,-490.0,0.00016767,2]
[366120222,1750073470819,-881.79,0.00016767,2]
[366120223,1750073470829,-1239.15,0.00016767,2]
[366120224,1750073471189,-1058.17,0.00016767,2]
[366120225,1750073471201,-490.0,0.00016767,2]
[366120226,1750073471211,-490.0,0.00016767,2]
[366120227,1750073471221,-1354.642034,0.00016767,2]
[366120228,1750073471231,-1354.642034,0.00016767,2]
[366120229,1750073471240,-854.78,0.00016767,2]
[366120230,1750073471250,-1354.642034,0.00016767,2]
[366120231,1750073471260,-1354.642028,0.00016767,2]
[366120232,1750073471270,-490.0,0.00016767,2]
[366120233,1750073471280,-1203.28,0.00016767,2]
[366120234,1750073471290,-1089.39,0.00016767,2]
[366120235,1750073471300,-490.0,0.00016767,2]
[366120236,1750073471310,-490.0,0.00016767,2]
[366120237,1750073471320,-716.44,0.00016767,2]
[366120238,1750073471332,-1058.87,0.00016767,2]
[366120239,1750073471342,-490.0,0.00016767,2]
[366120240,1750073471352,-1253.66,0.00016767,2]
[366120241,1750073471362,-402.964965,0.00016767,2]
[366120242,1750073471372,-742.48,0.00016767,2]
[366120243,1750073471382,-402.964965,0.00016767,2]
[366120244,1750073471391,-490.0,0.00016767,2]
[366120245,1750073471403,-660.95,0.00016767,2]
[366120246,1750073471413,-1057.43,0.00016767,2]
[366120247,1750073471426,-490.0,0.00016767,2]
[366120248,1750073471436,-402.964965,0.00016767,2]
[366120249,1750073471445,-402.964957,0.00016767,2]
[366120250,1750073471455,-559.3,0.00016767,2]
[366120251,1750073471465,-490.0,0.00016767,2]
[366120252,1750073471475,-783.28,0.00016767,2]
[366120253,1750073471485,-490.0,0.00016767,2]
[366120254,1750073471494,-490.0,0.00016767,2]
[366120255,1750073471504,-490.0,0.00016767,2]
[366120256,1750073471515,-490.0,0.00016767,2]
[366120257,1750073471524,-765.53,0.00016767,2]
[366120258,1750073471535,-296.463085,0.00016767,2]
[366120259,1750073471546,-836.55,0.00016767,2]
[366120260,1750073471557,-490.0,0.00016767,2]
[366120261,1750073471567,-737.72,0.00016767,2]
[366120262,1750073471577,-544.4,0.00016767,2]
[366120263,1750073471586,-585.66,0.00016767,2]
[366120264,1750073471596,-296.463085,0.00016767,2]
[366120265,1750073471605,-490.0,0.00016767,2]
[366120266,1750073471615,-490.0,0.00016767,2]
[366120267,1750073471625,-516.18,0.00016767,2]
[366120268,1750073471636,-490.0,0.00016767,2]
[366120269,1750073471647,-490.0,0.00016767,2]
[366120270,1750073471657,-582.82,0.00016767,2]
[366120271,1750073471670,-494.47,0.00016767,2]
[366120272,1750073471679,-490.0,0.00016767,2]
[366120273,1750073471689,-490.0,0.00016767,2]
[366120274,1750073471699,-490.0,0.00016767,2]
[366120275,1750073471708,-511.9,0.00016767,2]
[366120276,1750073471718,-490.0,0.00016767,2]
[366120277,1750073471728,-1721.39,0.00016767,2]
[366120278,1750073471738,-678.12,0.00016767,2]
[366120279,1750073471747,-1000.24,0.00016767,2]
[366120280,1750073471756,-490.0,0.00016767,2]
[366120281,1750073471766,-490.0,0.00016767,2]
[366120282,1750073471775,-490.0,0.00016767,2]
[366120283,1750073471785,-633.99,0.00016767,2]
[366120284,1750073471794,-490.0,0.00016767,2]
[366120285,1750073471804,-1029.15,0.00016767,2]
[366120286,1750073471814,-490.0,0.00016767,2]
[366120287,1750073471823,-551.63678055,0.00016767,2]
[366120288,1750073471833,-151.0,0.00016767,2]
[366120289,1750073471842,-603.99,0.00016767,2]
[366120290,1750073471851,-490.0,0.00016767,2]
[366120291,1750073471860,-490.0,0.00016767,2]
[366120292,1750073471870,-1188.19,0.00016767,2]
[366120293,1750073471879,-868.39,0.00016767,2]
[366120294,1750073471889,-490.0,0.00016767,2]
[366120295,1750073471899,-490.0,0.00016767,2]
[366120296,1750073471908,-1377.77,0.00016767,2]
[366120297,1750073471921,-722.87,0.00016767,2]
[366120298,1750073471930,-490.0,0.00016767,2]
[366120299,1750073471939,-490.0,0.00016767,2]